[Event "MČR juniorů a juniorek v rapid šachu 2024"]
[Site "Hotel Fit Fun, Harrachov, Czech Republic"]
[Date "2024.09.21"]
[Round "4.34"]
[White "Kopecka Libuse"]
[Black "Kopecka Anna"]
[Result "1/2-1/2"]
[TimeControl "20+5"]
[WhiteFideId "23748826"]
[BlackFideId "23767740"]
[WhiteElo "1496"]
[BlackElo "1431"]

1. e4 {[%clk 00:20:08]} e6 {[%clk 00:20:08]} {[%emt 00:17:12]} 2. d4 {[%clk
00:20:12]} d5 {[%clk 00:20:12]} {[%emt 00:00:03]} 3. e5 {[%clk 00:20:16]} c5
{[%clk 00:20:15]} {[%emt 00:00:02]} 4. c3 {[%clk 00:20:19]} {[%emt 00:00:02]}
Nc6 {[%clk 00:20:17]} {[%emt 00:00:03]} 5. Nf3 {[%clk 00:20:21]} {[%emt
00:00:02]} Bd7 {[%clk 00:20:02]} {[%emt 00:00:20]} 6. Be2 {[%clk 00:20:24]}
{[%emt 00:00:02]} Qb6 {[%clk 00:19:53]} {[%emt 00:00:14]} 7. O-O {[%clk
00:20:20]} {[%emt 00:00:09]} Be7 {[%clk 00:18:48]} {[%emt 00:01:10]} 8. b3
{[%clk 00:19:38]} cxd4 {[%clk 00:18:16]} {[%emt 00:01:25]} 9. cxd4 {[%clk
00:19:26]} f6 {[%clk 00:18:11]} {[%emt 00:00:27]} 10. Be3 {[%clk 00:16:24]} Qc7
{[%clk 00:16:02]} {[%emt 00:05:20]} 11. Bb5 {[%clk 00:14:01]} fxe5 {[%clk
00:15:20]} {[%emt 00:03:16]} 12. Bxc6 {[%emt 00:00:39]} Bxc6 {[%clk 00:14:42]}
{[%emt 00:00:34]} 13. Nxe5 {[%clk 00:13:28]} Nf6 {[%emt 00:01:47]} 14. Bg5
{[%clk 00:12:13]} O-O {[%clk 00:14:07]} {[%emt 00:00:29]} 15. Nd2 {[%clk
00:11:05]} Bd6 {[%clk 00:13:46]} {[%emt 00:01:41]} 16. Qe2 {[%emt 00:04:10]}
1/2-1/2



[ePGN "0.1;DGT LiveChess/2.2.6"]

[Event "MČR juniorů a juniorek v rapid šachu 2024"]
[Site "Hotel Fit Fun, Harrachov, Czech Republic"]
[Date "2024.09.21"]
[Round "4.35"]
[White "Taborska Aneta"]
[Black "Dufkova Tereza"]
[Result "0-1"]
[TimeControl "20+5"]
[WhiteFideId "23733039"]
[BlackFideId "23744383"]
[WhiteElo "1582"]
[BlackElo "1601"]

1. d4 {[%clk 00:20:08]} {[%emt 00:00:01]} f5 {[%clk 00:20:00]} {[%emt
00:00:10]} 2. Nf3 {[%clk 00:20:12]} {[%emt 00:00:02]} Nf6 {[%clk 00:20:03]}
{[%emt 00:00:02]} 3. e3 {[%clk 00:20:15]} {[%emt 00:00:01]} g6 {[%clk
00:20:06]} {[%emt 00:00:02]} 4. Bd3 {[%clk 00:20:19]} {[%emt 00:00:02]} Bg7
{[%clk 00:20:07]} {[%emt 00:00:04]} 5. O-O {[%clk 00:20:21]} {[%emt 00:00:03]}
d6 {[%clk 00:19:58]} {[%emt 00:00:14]} 6. Nbd2 {[%clk 00:20:23]} {[%emt
00:00:03]} O-O {[%clk 00:19:46]} {[%emt 00:00:16]} 7. Qe2 {[%clk 00:20:15]}
{[%emt 00:00:13]} Nc6 {[%clk 00:18:49]} {[%emt 00:01:02]} 8. c3 {[%clk
00:20:10]} {[%emt 00:00:10]} e5 {[%clk 00:18:31]} {[%emt 00:00:23]} 9. e4
{[%clk 00:20:07]} {[%emt 00:00:08]} fxe4 {[%clk 00:16:54]} {[%emt 00:01:42]} 10.
Nxe4 {[%clk 00:20:09]} {[%emt 00:00:03]} Bf5 {[%clk 00:16:24]} {[%emt
00:00:35]} 11. Nxf6+ {[%clk 00:19:48]} {[%emt 00:00:24]} Qxf6 {[%clk 00:16:12]}
{[%emt 00:00:19]} 12. Bg5 {[%clk 00:19:31]} {[%emt 00:00:20]} Bxd3 {[%clk
00:15:23]} {[%emt 00:00:56]} 13. Qxd3 {[%clk 00:19:08]} {[%emt 00:00:28]} Qf7
{[%clk 00:14:04]} {[%emt 00:01:10]} 14. Rfe1 {[%clk 00:18:40]} {[%emt
00:00:45]} h6 {[%clk 00:14:00]} {[%emt 00:00:11]} 15. Bh4 {[%clk 00:18:18]}
{[%emt 00:00:26]} Rae8 {[%clk 00:13:35]} {[%emt 00:00:31]} 16. Re4 {[%clk
00:18:19]} {[%emt 00:00:04]} Qf5 {[%clk 00:12:55]} {[%emt 00:00:45]} 17. Qc4+
{[%clk 00:17:36]} {[%emt 00:00:46]} Kh7 {[%clk 00:11:51]} {[%emt 00:01:12]} 18.
d5 {[%clk 00:16:01]} {[%emt 00:01:38]} Nd4 {[%clk 00:10:42]} {[%emt 00:01:14]}
19. Nxd4 {[%clk 00:14:31]} {[%emt 00:01:35]} Qxe4 {[%clk 00:10:36]} {[%emt
00:00:11]} 20. Qxc7 {[%clk 00:13:45]} {[%emt 00:00:52]} Qxh4 {[%clk 00:09:48]}
{[%emt 00:00:54]} 21. Nf3 {[%clk 00:13:47]} {[%emt 00:00:02]} Qe7 {[%clk
00:09:38]} {[%emt 00:00:13]} 22. Qc4 {[%clk 00:13:35]} {[%emt 00:00:10]} Qf7
{[%clk 00:09:35]} {[%emt 00:00:17]} 23. Re1 {[%clk 00:13:23]} {[%emt 00:00:15]}
Qf4 {[%clk 00:09:21]} {[%emt 00:00:21]} 24. Re4 {[%clk 00:13:17]} {[%emt
00:00:09]} Qc1+ {[%clk 00:08:42]} {[%emt 00:00:46]} 25. Re1 {[%clk 00:13:05]}
{[%emt 00:00:15]} Qxb2 {[%clk 00:08:46]} {[%emt 00:00:04]} 26. Re4 {[%clk
00:13:04]} {[%emt 00:00:02]} Qb1+ {[%clk 00:08:36]} {[%emt 00:00:17]} 27. Re1
{[%clk 00:13:06]} {[%emt 00:00:04]} Qf5 {[%clk 00:07:52]} {[%emt 00:00:49]} 28.
Re4 {[%clk 00:13:05]} {[%emt 00:00:03]} Rc8 {[%clk 00:07:49]} {[%emt 00:00:11]}
29. Qb4 {[%clk 00:12:53]} {[%emt 00:00:13]} a5 {[%clk 00:07:32]} {[%emt
00:00:26]} 30. Qa4 {[%clk 00:12:12]} {[%emt 00:00:42]} b5 {[%clk 00:07:33]}
{[%emt 00:00:08]} 31. Qc2 {[%clk 00:12:10]} {[%emt 00:00:07]} Rc4 {[%clk
00:07:35]} {[%emt 00:00:03]} 32. Nd2 {[%clk 00:11:31]} {[%emt 00:00:43]} Qxf2+
{[%clk 00:07:25]} {[%emt 00:00:16]} 33. Kh1 {[%emt 00:00:04]} 0-1



[ePGN "0.1;DGT LiveChess/2.2.6"]

[Event "MČR juniorů a juniorek v rapid šachu 2024"]
[Site "Hotel Fit Fun, Harrachov, Czech Republic"]
[Date "2024.09.21"]
[Round "4.36"]
[White "Macova Marketa"]
[Black "Zadrapova Gabriela"]
[Result "1-0"]
[TimeControl "20+5"]
[WhiteFideId "23715588"]
[BlackFideId "23753056"]
[WhiteElo "1587"]
[BlackElo "1456"]

1. e4 {[%clk 00:20:08]} {[%emt 01:23:22]} e5 {[%clk 00:20:09]} 2. Nf3 {[%clk
00:20:12]} {[%emt 00:00:01]} Nc6 {[%clk 00:20:13]} 3. Nc3 {[%clk 00:20:16]}
{[%emt 00:00:04]} Nf6 {[%clk 00:20:17]} 4. d4 {[%clk 00:20:19]} exd4 {[%clk
00:20:21]} {[%emt 00:00:01]} 5. Nxd4 {[%clk 00:20:23]} {[%emt 00:00:02]} Bb4
{[%clk 00:20:20]} {[%emt 00:00:06]} 6. Nxc6 {[%clk 00:20:26]} {[%emt 00:00:03]}
bxc6 {[%clk 00:20:23]} {[%emt 00:00:02]} 7. Bd3 {[%clk 00:20:28]} {[%emt
00:00:02]} O-O {[%clk 00:20:22]} {[%emt 00:00:06]} 8. Bg5 {[%clk 00:20:17]}
{[%emt 00:00:15]} Re8 {[%clk 00:20:05]} {[%emt 00:00:23]} 9. O-O {[%clk
00:20:07]} {[%emt 00:00:15]} h6 {[%clk 00:20:03]} {[%emt 00:00:07]} 10. Bxf6
{[%clk 00:18:42]} {[%emt 00:01:30]} Qxf6 {[%clk 00:20:06]} {[%emt 00:00:03]} 11.
Qd2 {[%clk 00:18:35]} {[%emt 00:00:12]} d5 {[%clk 00:19:47]} {[%emt 00:00:24]}
12. exd5 {[%clk 00:18:29]} {[%emt 00:00:10]} cxd5 {[%clk 00:19:49]} {[%emt
00:00:03]} 13. a3 {[%clk 00:17:57]} {[%emt 00:00:37]} Ba5 {[%clk 00:19:45]}
{[%emt 00:00:09]} 14. b4 {[%clk 00:17:51]} {[%emt 00:00:11]} Bb6 {[%clk
00:19:47]} {[%emt 00:00:03]} 15. Nxd5 {[%clk 00:17:43]} {[%emt 00:00:12]} Qd6
{[%clk 00:18:46]} {[%emt 00:01:06]} 16. Nxb6 {[%clk 00:15:36]} {[%emt
00:02:13]} axb6 {[%clk 00:18:47]} {[%emt 00:00:04]} 17. Rfd1 {[%clk 00:14:42]}
{[%emt 00:00:58]} Bb7 {[%clk 00:18:24]} {[%emt 00:00:29]} 18. Qc3 {[%clk
00:14:03]} {[%emt 00:00:44]} Qe6 {[%clk 00:17:02]} {[%emt 00:01:17]} 19. Qxc7
{[%clk 00:13:37]} {[%emt 00:00:41]} Bd5 {[%clk 00:17:01]} {[%emt 00:00:06]} 20.
Qg3 {[%clk 00:11:07]} {[%emt 00:02:35]} Qc6 {[%clk 00:14:46]} {[%emt 00:02:20]}
21. c4 {[%clk 00:06:49]} {[%emt 00:04:23]} Bxc4 {[%clk 00:11:44]} {[%emt
00:03:08]} 22. Bxc4 {[%clk 00:04:56]} {[%emt 00:01:57]} Qxc4 {[%clk 00:11:44]}
{[%emt 00:00:05]} 23. Rdc1 {[%clk 00:04:58]} {[%emt 00:00:04]} Qe6 {[%clk
00:11:40]} {[%emt 00:00:06]} 24. Qf3 {[%clk 00:03:53]} {[%emt 00:01:11]} Ra7
{[%clk 00:10:55]} {[%emt 00:00:49]} 25. h3 {[%clk 00:03:45]} {[%emt 00:00:15]}
Rae7 {[%clk 00:09:58]} {[%emt 00:01:01]} 26. Rc6 {[%clk 00:03:31]} {[%emt
00:00:19]} Qd7 {[%clk 00:08:23]} {[%emt 00:01:40]} 27. Rac1 {[%clk 00:02:49]}
{[%emt 00:00:48]} Re1+ {[%clk 00:07:31]} {[%emt 00:00:57]} 28. Rxe1 {[%clk
00:02:51]} {[%emt 00:00:02]} Rxe1+ {[%clk 00:07:34]} {[%emt 00:00:03]} 29. Kh2
{[%clk 00:02:55]} Rd1 {[%clk 00:07:20]} {[%emt 00:00:20]} 30. Qc3 {[%clk
00:02:22]} {[%emt 00:00:38]} Rd3 {[%clk 00:06:37]} {[%emt 00:00:48]} 31. Qc1
{[%clk 00:01:29]} {[%emt 00:00:59]} Qd4 {[%clk 00:05:39]} {[%emt 00:00:59]} 32.
Qc4 {[%clk 00:00:55]} {[%emt 00:00:43]} Qe5+ {[%clk 00:05:21]} {[%emt
00:00:22]} 33. g3 {[%clk 00:00:52]} {[%emt 00:00:08]} Rd4 {[%clk 00:05:12]}
{[%emt 00:00:11]} 34. Qc2 {[%clk 00:00:39]} {[%emt 00:00:21]} g6 {[%clk
00:04:00]} {[%emt 00:01:17]} 35. Rxb6 {[%clk 00:00:34]} {[%emt 00:00:10]} Qe1
{[%clk 00:02:56]} {[%emt 00:01:07]} 36. Rc6 {[%clk 00:00:13]} {[%emt 00:00:28]}
Rd1 {[%clk 00:01:56]} {[%emt 00:01:05]} 37. Rc8+ {[%clk 00:00:12]} {[%emt
00:00:07]} Kg7 {[%clk 00:01:59]} 38. Qb2+ {[%clk 00:00:11]} {[%emt 00:00:06]}
Kh7 {[%clk 00:01:55]} {[%emt 00:00:09]} 39. Qh8# {[%clk 00:00:15]} {[%emt
00:00:02]} 1-0



[ePGN "0.1;DGT LiveChess/2.2.6"]

[Event "MČR juniorů a juniorek v rapid šachu 2024"]
[Site "Hotel Fit Fun, Harrachov, Czech Republic"]
[Date "2024.09.21"]
[Round "4.4"]
[White "Rousek Jan"]
[Black "Hosova Sandra"]
[Result "1-0"]
[TimeControl "20+5"]
[WhiteFideId "386669"]
[BlackFideId "397717"]
[WhiteElo "1958"]
[BlackElo "1847"]

1. d4 {[%clk 00:20:06]} {[%emt 00:00:03]} d5 {[%clk 00:20:08]} {[%emt
00:00:02]} 2. Nf3 {[%clk 00:20:08]} {[%emt 00:00:03]} Nc6 {[%clk 00:20:09]}
{[%emt 00:00:05]} 3. g3 {[%clk 00:20:08]} {[%emt 00:00:06]} Bf5 {[%clk
00:20:03]} {[%emt 00:00:09]} 4. Bg2 {[%clk 00:20:10]} {[%emt 00:00:03]} Qd7
{[%clk 00:19:59]} {[%emt 00:00:10]} 5. O-O {[%clk 00:20:04]} {[%emt 00:00:10]}
f6 {[%clk 00:19:16]} {[%emt 00:00:48]} 6. c4 {[%clk 00:18:15]} {[%emt
00:01:53]} e6 {[%clk 00:19:08]} {[%emt 00:00:15]} 7. Nc3 {[%clk 00:17:35]}
{[%emt 00:00:45]} Nge7 {[%clk 00:18:42]} {[%emt 00:00:32]} 8. Re1 {[%clk
00:11:17]} {[%emt 00:06:23]} O-O-O {[%clk 00:16:00]} {[%emt 00:02:47]} 9. Qa4
{[%clk 00:10:55]} {[%emt 00:00:26]} Kb8 {[%clk 00:15:34]} {[%emt 00:00:32]} 10.
b4 {[%clk 00:07:44]} {[%emt 00:03:16]} Nc8 {[%clk 00:13:26]} {[%emt 00:02:13]}
11. c5 {[%clk 00:03:23]} {[%emt 00:04:26]} g5 {[%clk 00:13:16]} {[%emt
00:00:15]} 12. b5 {[%clk 00:03:25]} {[%emt 00:00:03]} N6e7 {[%clk 00:13:14]}
{[%emt 00:00:06]} 13. e4 {[%clk 00:03:09]} {[%emt 00:00:21]} dxe4 {[%clk
00:13:03]} {[%emt 00:00:16]} 14. Nxe4 {[%clk 00:03:04]} {[%emt 00:00:10]} Bxe4
{[%clk 00:11:17]} {[%emt 00:01:52]} 15. Rxe4 {[%clk 00:03:06]} {[%emt
00:00:03]} Nd5 {[%clk 00:11:15]} {[%emt 00:00:07]} 16. c6 {[%clk 00:02:46]}
{[%emt 00:00:25]} Ncb6 {[%clk 00:10:10]} {[%emt 00:01:09]} 17. cxd7 {[%clk
00:02:48]} {[%emt 00:00:03]} Nxa4 {[%clk 00:10:13]} {[%emt 00:00:02]} 18. Rxe6
{[%clk 00:02:49]} {[%emt 00:00:04]} Bb4 {[%clk 00:10:15]} {[%emt 00:00:04]} 19.
Nxg5 {[%clk 00:01:17]} {[%emt 00:01:36]} fxg5 {[%clk 00:09:30]} {[%emt
00:00:51]} 20. Bxd5 {[%clk 00:01:21]} {[%emt 00:00:01]} Rxd7 {[%clk 00:09:33]}
{[%emt 00:00:02]} 21. Bb3 {[%clk 00:01:24]} Bc3 {[%clk 00:09:01]} {[%emt
00:00:37]} 22. Rb1 {[%clk 00:01:16]} {[%emt 00:00:13]} Nb6 {[%clk 00:08:41]}
{[%emt 00:00:25]} 23. Bxg5 {[%clk 00:01:12]} {[%emt 00:00:09]} Rxd4 {[%clk
00:08:15]} {[%emt 00:00:31]} 24. Bf6 {[%clk 00:00:54]} {[%emt 00:00:22]} Rf8
{[%clk 00:07:54]} {[%emt 00:00:26]} 25. Bxd4 {[%clk 00:00:49]} {[%emt
00:00:10]} Bxd4 {[%clk 00:07:58]} {[%emt 00:00:01]} 26. Re2 {[%clk 00:00:51]}
{[%emt 00:00:04]} a6 {[%clk 00:07:28]} {[%emt 00:00:34]} 27. Rd1 {[%clk
00:00:52]} {[%emt 00:00:03]} Bc5 {[%clk 00:07:29]} {[%emt 00:00:05]} 28. bxa6
{[%clk 00:00:54]} {[%emt 00:00:04]} bxa6 {[%clk 00:07:33]} {[%emt 00:00:01]} 29.
Kg2 {[%clk 00:00:48]} {[%emt 00:00:10]} Nc8 {[%clk 00:07:01]} {[%emt 00:00:38]}
30. f4 {[%clk 00:00:36]} {[%emt 00:00:17]} Nd6 {[%clk 00:07:03]} {[%emt
00:00:03]} 31. Rde1 {[%clk 00:00:22]} {[%emt 00:00:18]} Nf5 {[%clk 00:07:00]}
{[%emt 00:00:09]} 32. Re5 {[%clk 00:00:21]} {[%emt 00:00:06]} Bd6 {[%clk
00:07:03]} {[%emt 00:00:02]} 33. Re8+ {[%clk 00:00:24]} {[%emt 00:00:02]} Rxe8
{[%clk 00:07:04]} {[%emt 00:00:04]} 34. Rxe8+ {[%clk 00:00:27]} {[%emt
00:00:01]} Kb7 {[%clk 00:07:06]} {[%emt 00:00:03]} 35. Rh8 {[%clk 00:00:30]}
{[%emt 00:00:02]} h6 {[%clk 00:06:59]} {[%emt 00:00:13]} 36. Bd5+ {[%clk
00:00:25]} {[%emt 00:00:10]} Kb6 {[%clk 00:07:02]} {[%emt 00:00:02]} 37. Be4
{[%clk 00:00:28]} {[%emt 00:00:02]} Nd4 {[%clk 00:06:54]} {[%emt 00:00:13]} 38.
Rxh6 {[%clk 00:00:28]} {[%emt 00:00:05]} Kb5 {[%clk 00:06:48]} {[%emt
00:00:10]} 39. Bd3+ {[%clk 00:00:29]} {[%emt 00:00:05]} Kb4 {[%clk 00:06:48]}
{[%emt 00:00:04]} 40. Bxa6 {[%clk 00:00:32]} {[%emt 00:00:03]} Nb5 {[%clk
00:06:42]} {[%emt 00:00:10]} 41. Bxb5 {[%clk 00:00:35]} {[%emt 00:00:02]} Kxb5
{[%clk 00:06:46]} 42. Kf2 {[%clk 00:00:33]} {[%emt 00:00:07]} Ba3 {[%clk
00:06:37]} {[%emt 00:00:15]} 43. Ke2 {[%clk 00:00:33]} {[%emt 00:00:04]} c5
{[%clk 00:06:37]} {[%emt 00:00:06]} 44. Kd3 {[%clk 00:00:36]} {[%emt 00:00:02]}
c4+ {[%clk 00:06:38]} {[%emt 00:00:04]} 45. Kc2 {[%clk 00:00:40]} Kc5 {[%clk
00:06:40]} {[%emt 00:00:04]} 46. Re6 {[%clk 00:00:42]} {[%emt 00:00:03]} Kd4
{[%clk 00:06:42]} {[%emt 00:00:03]} 47. h4 {[%clk 00:00:42]} {[%emt 00:00:04]}
1-0



[ePGN "0.1;DGT LiveChess/2.2.6"]

[Event "MČR juniorů a juniorek v rapid šachu 2024"]
[Site "Hotel Fit Fun, Harrachov, Czech Republic"]
[Date "2024.09.21"]
[Round "4.5"]
[White "Mikolas Petr"]
[Black "Mrazek Adam"]
[Result "1/2-1/2"]
[TimeControl "20+5"]
[WhiteFideId "23713224"]
[BlackFideId "23725010"]
[WhiteElo "1892"]
[BlackElo "1830"]

1. e4 {[%clk 00:20:08]} {[%emt 00:00:03]} c5 {[%clk 00:19:57]} {[%emt
00:00:14]} 2. Nf3 {[%clk 00:20:10]} Nc6 {[%clk 00:19:59]} {[%emt 00:00:03]} 3.
d4 {[%clk 00:20:13]} {[%emt 00:00:03]} cxd4 {[%clk 00:20:01]} {[%emt 00:00:02]}
4. Nxd4 {[%clk 00:20:17]} Nf6 {[%clk 00:20:04]} {[%emt 00:00:03]} 5. Nc3 {[%clk
00:20:20]} e5 {[%clk 00:20:06]} {[%emt 00:00:03]} 6. Ndb5 {[%clk 00:20:24]} d6
{[%clk 00:20:09]} {[%emt 00:00:02]} 7. Bg5 {[%clk 00:20:27]} {[%emt 00:00:02]}
a6 {[%clk 00:20:12]} {[%emt 00:00:02]} 8. Na3 {[%clk 00:20:30]} {[%emt
00:00:02]} b5 {[%clk 00:20:16]} 9. Nd5 {[%clk 00:20:33]} {[%emt 00:00:02]} Be7
{[%clk 00:20:18]} {[%emt 00:00:03]} 10. Bxf6 {[%clk 00:20:36]} {[%emt
00:00:02]} Bxf6 {[%clk 00:20:20]} {[%emt 00:00:03]} 11. c3 {[%clk 00:20:40]}
{[%emt 00:00:02]} O-O {[%clk 00:20:21]} {[%emt 00:00:04]} 12. Nc2 {[%clk
00:20:43]} {[%emt 00:00:02]} Rb8 {[%clk 00:20:22]} {[%emt 00:00:04]} 13. Be2
{[%clk 00:17:58]} {[%emt 00:02:50]} Bg5 {[%clk 00:20:16]} {[%emt 00:00:11]} 14.
Nce3 {[%clk 00:16:45]} {[%emt 00:01:18]} Ne7 {[%clk 00:19:56]} {[%emt
00:00:26]} 15. O-O {[%clk 00:15:08]} {[%emt 00:01:42]} Kh8 {[%clk 00:18:28]}
{[%emt 00:01:32]} 16. Nxe7 {[%clk 00:08:18]} {[%emt 00:06:55]} Qxe7 {[%clk
00:18:11]} {[%emt 00:00:22]} 17. Nd5 {[%clk 00:08:09]} {[%emt 00:00:14]} Qb7
{[%clk 00:15:09]} {[%emt 00:03:07]} 18. Bg4 {[%clk 00:04:05]} {[%emt 00:04:09]}
Be6 {[%clk 00:14:15]} {[%emt 00:01:00]} 19. f3 {[%clk 00:03:35]} {[%emt
00:00:35]} Bxd5 {[%clk 00:08:47]} {[%emt 00:05:33]} 20. Qxd5 {[%clk 00:03:37]}
{[%emt 00:00:03]} Qxd5 {[%clk 00:08:50]} {[%emt 00:00:02]} 21. exd5 {[%clk
00:03:41]} f5 {[%clk 00:08:55]} 22. Bh3 {[%clk 00:03:45]} g6 {[%clk 00:07:20]}
{[%emt 00:01:40]} 23. Kf2 {[%clk 00:01:41]} {[%emt 00:02:08]} Rfc8 {[%clk
00:07:11]} {[%emt 00:00:15]} 24. Rfd1 {[%clk 00:01:32]} {[%emt 00:00:13]} b4
{[%clk 00:05:20]} {[%emt 00:01:57]} 25. cxb4 {[%clk 00:00:35]} {[%emt
00:01:02]} Rc2+ {[%clk 00:05:15]} {[%emt 00:00:10]} 26. Kf1 {[%clk 00:00:39]}
{[%emt 00:00:01]} Rxb4 {[%clk 00:04:33]} {[%emt 00:00:47]} 27. b3 {[%clk
00:00:38]} {[%emt 00:00:06]} Rb5 {[%clk 00:03:10]} {[%emt 00:01:28]} 28. Rd3
{[%clk 00:00:07]} {[%emt 00:00:36]} Rbc5 {[%clk 00:02:49]} {[%emt 00:00:26]} 29.
b4 {[%clk 00:00:11]} {[%emt 00:00:02]} R5c4 {[%clk 00:02:34]} {[%emt 00:00:20]}
30. Rb3 {[%clk 00:00:09]} {[%emt 00:00:07]} Rd2 {[%clk 00:01:08]} {[%emt
00:01:31]} 31. b5 {[%clk 00:00:07]} {[%emt 00:00:06]} axb5 {[%clk 00:01:12]}
{[%emt 00:00:02]} 32. Rxb5 {[%clk 00:00:11]} Rcc2 {[%clk 00:01:14]} {[%emt
00:00:02]} 33. a4 {[%clk 00:00:07]} {[%emt 00:00:10]} Be3 {[%clk 00:00:28]}
{[%emt 00:00:51]} 34. a5 {[%clk 00:00:07]} {[%emt 00:00:05]} Rf2+ {[%clk
00:00:18]} {[%emt 00:00:15]} 35. Ke1 {[%clk 00:00:11]} {[%emt 00:00:01]} Rce2+
{[%clk 00:00:20]} {[%emt 00:00:03]} 36. Kd1 {[%clk 00:00:15]} Rd2+ {[%clk
00:00:22]} {[%emt 00:00:03]} 37. Ke1 {[%clk 00:00:19]} Rfe2+ {[%clk 00:00:23]}
{[%emt 00:00:04]} 38. Kf1 {[%clk 00:00:23]} {[%emt 00:00:01]} Bd4 {[%clk
00:00:13]} {[%emt 00:00:15]} 39. Rc1 {[%clk 00:00:09]} {[%emt 00:00:19]} Rc2
{[%clk 00:00:08]} {[%emt 00:00:10]} 40. Rxc2 {[%clk 00:00:08]} {[%emt
00:00:07]} Rxc2 {[%clk 00:00:12]} 41. Rb8+ {[%clk 00:00:11]} {[%emt 00:00:02]}
Kg7 {[%clk 00:00:16]} 42. a6 {[%clk 00:00:14]} {[%emt 00:00:02]} Ra2 {[%clk
00:00:19]} {[%emt 00:00:03]} 43. Ra8 {[%clk 00:00:18]} Kh6 {[%clk 00:00:18]}
{[%emt 00:00:06]} 44. Ke1 {[%clk 00:00:13]} {[%emt 00:00:10]} Kg5 {[%clk
00:00:18]} {[%emt 00:00:05]} 45. Kd1 {[%clk 00:00:10]} {[%emt 00:00:08]} Kf4
{[%clk 00:00:19]} {[%emt 00:00:04]} 46. Kc1 {[%clk 00:00:13]} {[%emt 00:00:03]}
g5 {[%clk 00:00:08]} {[%emt 00:00:15]} 47. g3+ {[%clk 00:00:16]} {[%emt
00:00:02]} Kxf3 {[%clk 00:00:13]} {[%emt 00:00:01]} 48. Bxf5 {[%emt 00:00:01]}
e4 {[%clk 00:00:13]} {[%emt 00:00:04]} 49. Rf8 {[%clk 00:00:19]} {[%emt
00:00:06]} Ke3 {[%clk 00:00:08]} {[%emt 00:00:10]} 50. Re8 {[%emt 00:00:07]}
Kd3 {[%clk 00:00:06]} {[%emt 00:00:03]} 51. Bxe4+ {[%emt 00:00:02]} Kc3 {[%emt
00:00:01]} 52. Kd1 {[%clk 00:00:26]} {[%emt 00:00:02]} Rxa6 {[%clk 00:00:10]}
{[%emt 00:00:06]} 53. Rc8+ {[%clk 00:00:21]} {[%emt 00:00:09]} Bc5 {[%clk
00:00:10]} {[%emt 00:00:06]} 54. Bxh7 {[%clk 00:00:25]} Ra1+ {[%clk 00:00:09]}
{[%emt 00:00:06]} 55. Ke2 {[%clk 00:00:29]} {[%emt 00:00:01]} Ra2+ {[%clk
00:00:12]} {[%emt 00:00:01]} 56. Kf3 {[%clk 00:00:31]} {[%emt 00:00:04]} Rxh2
{[%clk 00:00:15]} {[%emt 00:00:02]} 57. Bf5 {[%clk 00:00:31]} {[%emt 00:00:05]}
Kd4 {[%clk 00:00:08]} {[%emt 00:00:12]} 58. Be6 {[%clk 00:00:33]} {[%emt
00:00:03]} Ke5 {[%clk 00:00:08]} {[%emt 00:00:05]} 59. Kg4 {[%clk 00:00:35]}
{[%emt 00:00:02]} Rg2 {[%clk 00:00:08]} {[%emt 00:00:05]} 60. Rf8 {[%clk
00:00:36]} {[%emt 00:00:04]} Bf2 {[%emt 00:00:09]} 61. Rf5+ {[%clk 00:00:38]}
{[%emt 00:00:02]} Kd4 {[%clk 00:00:10]} 62. Rxg5 {[%clk 00:00:38]} {[%emt
00:00:05]} Rxg3 {[%clk 00:00:13]} {[%emt 00:00:02]} 63. Kf5 {[%clk 00:00:42]}
{[%emt 00:00:01]} Rxg5+ {[%clk 00:00:09]} {[%emt 00:00:09]} 64. Kxg5 {[%clk
00:00:46]} Be3+ {[%clk 00:00:12]} {[%emt 00:00:01]} 65. Kg4 {[%clk 00:00:50]}
{[%emt 00:00:02]} Ke5 {[%clk 00:00:14]} {[%emt 00:00:04]} 66. Kf3 {[%clk
00:00:54]} Bc5 {[%clk 00:00:18]} {[%emt 00:00:02]} 67. Ke2 {[%clk 00:00:58]}
Bd4 {[%clk 00:00:22]} 68. Kd3 {[%clk 00:01:02]} {[%emt 00:00:02]} Bc5 {[%clk
00:00:26]} 69. Kc4 {[%clk 00:01:06]} Bd4 {[%clk 00:00:30]} 70. Kb5 {[%clk
00:01:11]} {[%emt 00:00:01]} Bc5 {[%clk 00:00:34]} 71. Kc6 {[%clk 00:01:15]}
{[%emt 00:00:01]} Bd4 {[%clk 00:00:38]} 1/2-1/2



[ePGN "0.1;DGT LiveChess/2.2.6"]